bitfinex/quotes_BTCUSD_20250814
["timestamp","ask_amount","ask_price","bid_price","bid_amount"]
[1755191813850,0.14888,117680.0,117670.0,1.78681791]
[1755191814513,0.14888,117680.0,117670.0,1.70433348]
[1755191814940,0.14888,117680.0,117670.0,1.55216798]
[1755191816294,0.14888,117680.0,117670.0,1.55093798]
[1755191816831,0.14888,117680.0,117670.0,1.55216798]
[1755191817405,0.14888,117680.0,117670.0,1.55093798]
[1755191817581,0.14888,117680.0,117670.0,1.63342241]
[1755191818251,0.15208,117680.0,117670.0,1.63342241]
[1755191818416,0.15409,117680.0,117670.0,0.97633487]
[1755191818659,0.15409,117680.0,117670.0,0.89385044]
[1755191819112,0.15409,117680.0,117670.0,0.86834844]
[1755191819256,0.15409,117680.0,117670.0,0.86638844]
[1755191819451,0.15409,117680.0,117670.0,0.60218844]
[1755191819766,0.32404241,117680.0,117670.0,0.17946519]
[1755191819971,0.39170427,117680.0,117670.0,0.17946519]
[1755191820161,0.22175186,117680.0,117670.0,0.17946519]
[1755191820362,0.22175186,117680.0,117670.0,0.21525975]
[1755191820562,0.14888,117680.0,117670.0,0.87430729]
[1755191821223,0.14888,117680.0,117670.0,1.02651101]
[1755191821856,0.14888,117680.0,117670.0,0.36942347]
[1755191822148,0.15409,117680.0,117670.0,0.36942347]
[1755191822375,0.15409,117680.0,117670.0,0.36746347]
[1755191822990,0.15409,117680.0,117670.0,0.33166891]
[1755191823408,0.32404241,117680.0,117670.0,0.33166891]
[1755191823637,0.32404241,117680.0,117670.0,0.17946519]
[1755191824043,0.15009,117680.0,117670.0,0.17846519]
[1755191824454,0.15109,117680.0,117670.0,0.17946519]
[1755191824675,0.15209,117680.0,117670.0,0.17946519]
[1755191825121,0.15109,117680.0,117670.0,0.17846519]
[1755191825325,0.15309,117680.0,117670.0,0.17946519]
[1755191825539,0.15309,117680.0,117670.0,0.23048012]
[1755191825742,0.15209,117680.0,117670.0,0.23048012]
[1755191826129,0.32204241,117680.0,117670.0,0.18046519]
[1755191826345,0.32504241,117680.0,117670.0,0.17196685]
[1755191827111,0.15509,117680.0,117670.0,0.17196685]
[1755191827315,0.15683028,117680.0,117670.0,0.17196685]
[1755191828482,0.01195028,117680.0,117670.0,0.82905439]
[1755191828733,0.1496,117680.0,117670.0,0.91349882]
[1755191829161,0.1496,117680.0,117670.0,0.83101439]
[1755191829361,0.1496,117680.0,117670.0,0.17392685]
[1755191829574,0.1496,117680.0,117670.0,0.83101439]
[1755191830204,0.1496,117680.0,117670.0,0.17392685]
[1755191830431,0.1496,117680.0,117670.0,0.17196685]
[1755191830432,0.15463,117680.0,117670.0,0.17196685]
[1755191831376,0.1496,117680.0,117670.0,0.85076852]
[1755191831760,0.15463,117680.0,117670.0,0.19172098]
[1755191832615,0.32458241,117680.0,117670.0,0.17196685]
[1755191832998,0.15463,117680.0,117670.0,0.17196685]
[1755191833197,0.32632269,117680.0,117670.0,0.17196685]
[1755191833429,0.32458241,117680.0,117670.0,0.17196685]
[1755191833868,0.32458241,117680.0,117670.0,0.002]
[1755191834941,0.15463,117680.0,117670.0,0.17196685]
[1755191835148,0.15637028,117680.0,117670.0,0.20701157]
[1755191837539,0.13637028,117680.0,117670.0,0.20701157]
[1755191838362,0.30632269,117680.0,117670.0,0.20701157]
[1755191838569,0.30458241,117680.0,117670.0,0.17196685]
[1755191838769,0.13463,117680.0,117670.0,0.17196685]
[1755191838972,0.30632269,117680.0,117670.0,0.17196685]
[1755191839186,0.30458241,117680.0,117670.0,0.17196685]
[1755191839390,0.30458241,117680.0,117670.0,0.19316328]
[1755191839594,0.30458241,117680.0,117670.0,0.17196685]
[1755191841041,0.13463,117680.0,117670.0,0.17196685]
[1755191841248,0.13637028,117680.0,117670.0,0.17196685]
[1755191841502,0.13463,117680.0,117670.0,0.17392685]
[1755191842152,0.00307,117700.0,117690.0,0.16993797]
[1755191842275,0.23394289,117700.0,117690.0,0.16993797]
[1755191842480,0.23220261,117700.0,117690.0,0.16993797]
[1755191842686,0.40212614,117700.0,117690.0,0.16993797]
[1755191843308,0.40412614,117700.0,117690.0,0.001]
[1755191843630,0.40412614,117700.0,117690.0,0.17093797]
[1755191844132,0.40712614,117700.0,117690.0,0.17193797]
[1755191846735,0.01007936,117700.0,117690.0,0.20612572]
[1755191846953,0.15439936,117700.0,117690.0,0.20612572]
[1755191847110,0.15439936,117700.0,117690.0,0.21477601]
[1755191847322,0.15613964,117700.0,117690.0,0.17193797]
[1755191847524,0.32606317,117700.0,117690.0,0.17193797]
[1755191847763,0.32432289,117700.0,117690.0,0.17193797]
[1755191848089,0.32432289,117700.0,117690.0,0.002]
[1755191848312,0.32432289,117700.0,117690.0,0.17193797]
[1755191849422,0.15439936,117700.0,117690.0,0.20699071]
[1755191851073,0.32432289,117700.0,117690.0,0.20699071]
[1755191851281,0.32432289,117700.0,117690.0,0.17193797]
[1755191851410,0.15439936,117700.0,117690.0,0.17193797]
[1755191851822,0.32432289,117700.0,117690.0,0.17193797]
[1755191853694,0.15439936,117700.0,117690.0,0.17193797]
[1755191853919,0.32432289,117700.0,117690.0,0.20699071]
[1755191854297,0.32432289,117700.0,117690.0,0.17193797]
[1755191854654,0.32432289,117700.0,117690.0,0.002]
[1755191854655,0.40704614,117700.0,117690.0,0.002]
[1755191854877,1.13179554,117700.0,117690.0,0.002]
[1755191855095,1.15901554,117700.0,117690.0,0.002]
[1755191856057,1.15901554,117700.0,117650.0,0.17847076]
[1755191856058,0.00849762,117680.0,117650.0,0.17847076]
[1755191856278,0.1719413,117660.0,117650.0,0.17847076]
[1755191856480,0.1739113,117660.0,117640.0,0.36826225]
[1755191856685,0.31415575,117650.0,117640.0,0.36826225]
[1755191856884,0.31824575,117650.0,117640.0,0.36826225]
[1755191857407,0.31724575,117650.0,117640.0,0.1700102]
[1755191857548,0.14929933,117650.0,117640.0,0.22557301]
[1755191857757,0.15103961,117650.0,117640.0,0.22753301]
[1755191858222,0.32103536,117650.0,117640.0,0.1700102]
[1755191858424,0.14929933,117650.0,117640.0,0.1700102]
[1755191858611,0.14891961,117650.0,117640.0,0.1719702]
[1755191859226,0.14320933,117650.0,117640.0,0.1719702]
[1755191859655,0.31829508,117650.0,117640.0,0.1700102]
[1755191859849,0.31929508,117650.0,117640.0,0.1720102]
[1755191860058,0.32029508,117650.0,117640.0,0.1720102]
[1755191860291,0.15029933,117650.0,117640.0,0.20794538]
[1755191860450,0.15203961,117650.0,117640.0,0.20794538]
[1755191860648,0.32203536,117650.0,117640.0,0.20794538]
[1755191860866,0.32029508,117650.0,117640.0,0.20794538]
[1755191861069,0.15029933,117650.0,117640.0,0.20794538]
[1755191861414,0.15029933,117650.0,117640.0,0.20990538]
[1755191861415,0.00204933,117650.0,117640.0,0.20990538]
[1755191861571,0.14612933,117650.0,117640.0,0.20990538]
[1755191862567,0.15121933,117650.0,117640.0,0.20794538]
[1755191862785,0.32295536,117650.0,117640.0,0.1720102]
[1755191863006,0.15121933,117650.0,117640.0,0.1720102]
[1755191863151,0.15295961,117650.0,117640.0,0.1720102]
[1755191864453,0.15295961,117650.0,117640.0,0.1739702]
[1755191864454,0.15121933,117650.0,117640.0,0.1739702]
[1755191864660,0.14612933,117650.0,117640.0,0.1739702]
[1755191864868,0.14612933,117650.0,117640.0,0.25645463]
[1755191865651,0.14604933,117650.0,117640.0,0.91354217]
[1755191866565,0.14604933,117650.0,117640.0,0.25645463]
[1755191866852,0.14816933,117650.0,117640.0,0.1720102]
[1755191867011,0.32113508,117650.0,117640.0,0.002]
[1755191867206,0.32113508,117650.0,117640.0,0.1720102]
[1755191869795,0.32113508,117650.0,117640.0,0.002]
[1755191870022,0.40385833,117650.0,117640.0,0.002]
[1755191870653,0.40385833,117650.0,117640.0,0.1720102]
[1755191871180,0.40385833,117650.0,117640.0,0.002]
[1755191871391,0.60777833,117650.0,117640.0,0.002]
[1755191871827,0.17002095,117640.0,117620.0,0.17847653]
[1755191872031,0.17002095,117640.0,117630.0,0.17002465]
[1755191872230,0.31394095,117640.0,117630.0,0.17002465]
[1755191872452,0.31606095,117640.0,117620.0,0.17847653]
[1755191872668,0.00297,117630.0,117620.0,0.17847653]
[1755191872997,0.00509,117630.0,117620.0,0.17847653]
[1755191873596,0.17511465,117630.0,117620.0,0.16997458]
[1755191873798,0.00509,117630.0,117620.0,0.16997458]
[1755191874008,0.00683028,117630.0,117620.0,0.16997458]
[1755191874510,0.17685493,117630.0,117620.0,0.16997458]
[1755191874637,0.00509,117630.0,117620.0,0.16997458]
[1755191874846,0.00683028,117630.0,117620.0,0.16997458]
[1755191875457,0.17785493,117630.0,117620.0,0.16997458]
[1755191875659,0.17811465,117630.0,117620.0,0.16997458]
[1755191875865,0.00809,117630.0,117620.0,0.16997458]
[1755191876084,0.003,117630.0,117620.0,0.20763009]
[1755191876874,0.14684,117630.0,117620.0,0.20763009]
[1755191877071,0.14684,117630.0,117620.0,0.17193458]
[1755191877296,0.15367028,117630.0,117620.0,0.16997458]
[1755191877872,0.15367028,117630.0,117620.0,0.17193458]
[1755191878640,0.15155028,117630.0,117620.0,0.17193458]
[1755191879517,0.15367028,117630.0,117620.0,0.17193458]
[1755191879719,0.15367028,117630.0,117620.0,0.16997458]
[1755191883408,0.00771028,117630.0,117620.0,0.17193458]
[1755191883638,0.14672,117630.0,117620.0,0.20763009]
[1755191885018,0.15181,117630.0,117620.0,0.17193458]
[1755191885228,0.32183465,117630.0,117620.0,0.16997458]
[1755191885464,0.15181,117630.0,117620.0,0.16997458]
[1755191885637,0.15355028,117630.0,117620.0,0.16997458]
[1755191886197,0.14672,117630.0,117620.0,0.17193458]
[1755191886789,0.14846028,117630.0,117620.0,0.17193458]
[1755191887087,0.14846028,117630.0,117620.0,0.25441901]
[1755191887488,0.14672,117630.0,117620.0,0.25441901]
[1755191887617,0.14668,117630.0,117620.0,0.25441901]
[1755191887818,0.003,117630.0,117620.0,0.17193458]
[1755191888094,0.14664,117630.0,117620.0,0.17193458]
[1755191888552,0.003,117630.0,117620.0,0.17193458]
[1755191888757,0.1466,117630.0,117620.0,0.17193458]
[1755191890045,0.1466,117630.0,117620.0,0.82902212]
[1755191890345,0.1466,117630.0,117620.0,0.91150655]
[1755191890724,0.1466,117630.0,117620.0,0.81607984]
[1755191890928,0.1466,117630.0,117620.0,0.90003309]
[1755191891054,0.1466,117630.0,117620.0,0.89880309]
[1755191891260,0.1466,117630.0,117620.0,0.81631866]
[1755191891682,0.1466,117630.0,117620.0,0.25465783]
[1755191891906,0.1466,117630.0,117620.0,0.81631866]
[1755191894742,0.15174,117630.0,117620.0,0.17193458]
[1755191895534,0.32176465,117630.0,117620.0,0.16997458]
[1755191896907,0.15174,117630.0,117620.0,0.16997458]
[1755191898263,0.15174,117630.0,117620.0,0.73359541]
[1755191898920,0.1466,117630.0,117620.0,0.73359541]
[1755191899401,0.003,117630.0,117620.0,1.15754866]
[1755191899632,0.14344933,117650.0,117640.0,0.5100102]
[1755191899865,1e-08,117650.0,117640.0,1.71801511]
[1755191900109,1e-08,117650.0,117640.0,1.71924511]
[1755191900967,0.20396,117670.0,117660.0,0.5099813]
[1755191901167,0.20396,117670.0,117660.0,1.15632538]
[1755191901168,0.3474038,117670.0,117660.0,1.15632538]
[1755191901374,0.3474038,117670.0,117660.0,1.15755538]
[1755191901375,0.2040438,117670.0,117660.0,1.15755538]
[1755191901588,0.3474038,117670.0,117660.0,1.15755538]
[1755191902037,0.3474038,117670.0,117660.0,1.15632538]
[1755191902421,0.3484038,117670.0,117660.0,1.15732538]
[1755191902617,0.3494038,117670.0,117660.0,1.15832538]
[1755191902944,0.3494038,117670.0,117660.0,0.59666455]
[1755191904131,0.3545438,117670.0,117660.0,0.1719813]
[1755191911192,0.52451065,117670.0,117660.0,0.1719813]
[1755191911618,0.3545438,117670.0,117660.0,0.1719813]
[1755191912769,0.2111838,117670.0,117660.0,0.1719813]
[1755191913002,0.3491638,117670.0,117660.0,0.1739413]
[1755191913418,0.3543038,117670.0,117660.0,0.1739413]
[1755191913622,0.3543038,117670.0,117660.0,0.1719813]
[1755191914272,0.52427065,117670.0,117660.0,0.002]
[1755191917702,0.6069939,117670.0,117660.0,0.002]
[1755191918125,1.26472511,117670.0,117660.0,0.002]
[1755191918325,1.29039511,117670.0,117660.0,0.002]
[1755191918614,1.31590811,117670.0,117660.0,0.002]
[1755191918760,0.6326639,117670.0,117660.0,0.002]
[1755191918963,0.16999575,117650.0,117640.0,0.1785086]
[1755191919325,0.14596,117650.0,117640.0,0.1785086]
[1755191919540,0.14770028,117650.0,117640.0,0.1785086]
[1755191919913,0.14670028,117650.0,117640.0,0.1785086]
[1755191920532,0.31669603,117650.0,117640.0,0.1785086]
[1755191920734,0.31495575,117650.0,117640.0,0.1785086]
[1755191921112,0.14496,117650.0,117640.0,0.1795086]
[1755191921324,0.14870028,117650.0,117640.0,0.1795086]
[1755191921751,0.15270028,117650.0,117640.0,0.1805086]
[1755191924719,0.15270028,117650.0,117640.0,0.21641076]
[1755191925271,0.32269603,117650.0,117640.0,0.1805086]
[1755191925466,0.32095575,117650.0,117640.0,0.1805086]
[1755191925911,0.32095575,117650.0,117640.0,0.17200809]
[1755191927111,0.88260863,117650.0,117640.0,0.002]
[1755191927331,0.32095575,117650.0,117640.0,0.1720102]
[1755191928031,0.32095575,117650.0,117640.0,0.002]
[1755191930432,0.32095575,117650.0,117640.0,0.1720102]
[1755191931169,0.32095575,117650.0,117640.0,0.002]
[1755191932147,0.88260863,117650.0,117640.0,0.002]
[1755191932517,0.32095575,117650.0,117640.0,0.1720102]
[1755191932719,0.32095575,117650.0,117640.0,0.20706252]
[1755191932917,0.32095575,117650.0,117640.0,0.002]
[1755191933906,0.96533188,117650.0,117640.0,0.002]
[1755191934057,0.79533613,117650.0,117640.0,0.002]
[1755191938450,0.80395913,117650.0,117640.0,0.002]
[1755191940649,0.24230625,117650.0,117640.0,0.002]
[1755191942078,0.80395913,117650.0,117640.0,0.002]
[1755191942526,0.84707815,117650.0,117640.0,0.002]
[1755191943561,0.84107815,117650.0,117620.0,0.00029545]
[1755191943765,0.56165288,117630.0,117620.0,0.00029545]
[1755191944013,0.79181613,117630.0,117620.0,0.00029545]
[1755191945016,0.79181613,117630.0,117620.0,0.00044345]
[1755191945628,0.79281613,117630.0,117620.0,0.00044345]
[1755191946351,0.79381613,117630.0,117620.0,0.00044345]
[1755191947580,0.79281613,117630.0,117620.0,0.00044345]
[1755191947835,0.79381613,117630.0,117620.0,0.00044345]
[1755191948253,0.81026515,117630.0,117620.0,0.00044345]
[1755191948463,0.79181613,117630.0,117620.0,0.00044345]
[1755191948619,0.79381613,117630.0,117620.0,0.00044345]
[1755191948830,0.79481613,117630.0,117620.0,0.00044345]
[1755191949259,0.79381613,117630.0,117620.0,0.00044345]
[1755191949474,0.79181613,117630.0,117620.0,0.00044345]
[1755191950417,0.79581613,117630.0,117620.0,0.00044345]
[1755191950755,0.81526515,117630.0,117620.0,0.00044345]
[1755191950962,0.81526515,117630.0,117620.0,0.000148]
[1755191951851,0.45757227,117630.0,117620.0,0.000148]
[1755191952060,1.01922515,117630.0,117620.0,0.000148]
[1755191952774,1.01906515,117630.0,117620.0,0.000148]
[1755191954163,1.03493304,117630.0,117620.0,0.000148]
[1755191954381,1.40071304,117630.0,117620.0,0.000148]
[1755191954707,2.05502778,117630.0,117620.0,0.000148]
[1755191954907,0.56165288,117580.0,117570.0,0.0004]
[1755191955177,0.70907288,117580.0,117570.0,0.00089315]
[1755191955586,0.14742,117580.0,117570.0,0.00292315]
[1755191955780,0.14224,117580.0,117570.0,0.00292315]
[1755191956197,0.14498028,117580.0,117570.0,0.00292315]
[1755191957965,0.14698028,117580.0,117570.0,0.00292315]
[1755191958761,0.14898028,117580.0,117570.0,0.00292315]
[1755191958992,0.15416028,117580.0,117570.0,0.00089315]
[1755191960502,0.23688353,117580.0,117570.0,0.00089315]
[1755191960718,0.23514325,117580.0,117570.0,0.00089315]
[1755191961254,0.23314325,117580.0,117570.0,0.00089315]
[1755191961865,0.23164325,117580.0,117570.0,0.00089315]
[1755191962273,0.23464325,117580.0,117570.0,0.00089315]
[1755191963386,0.91104833,117580.0,117570.0,0.00089315]
[1755191964152,0.25209227,117580.0,117570.0,0.00089315]
[1755191964379,0.92828273,117580.0,117570.0,0.00089315]
[1755191965124,0.93328273,117580.0,117570.0,0.00089315]
[1755191965330,0.27432667,117580.0,117570.0,0.00089315]
[1755191967630,0.93328273,117580.0,117570.0,0.00089315]
[1755191968437,0.13258667,117580.0,117570.0,0.00089315]
[1755191968655,0.27640695,117580.0,117570.0,0.00089315]
[1755191968875,0.27466667,117580.0,117570.0,0.00089315]
[1755191969922,0.27466667,117580.0,117530.0,1.00199075]
[1755191970184,0.29258124,117570.0,117540.0,0.00144962]
[1755191970390,0.14469821,117560.0,117540.0,0.00144962]
[1755191970537,0.24325086,117560.0,117540.0,0.00144962]
[1755191970754,0.24059265,117560.0,117540.0,0.00144962]
[1755191970945,0.00265844,117550.0,117540.0,0.00144962]
[1755191971698,0.14469844,117550.0,117540.0,0.00144962]
[1755191972313,0.00365844,117550.0,117540.0,0.00144962]
[1755191972539,0.143,117550.0,117530.0,1.08452451]
[1755191972776,0.143,117550.0,117540.0,0.00144995]
[1755191973220,0.143,117550.0,117530.0,0.42556845]
[1755191973221,0.144,117550.0,117530.0,0.42556845]
[1755191974340,0.143,117550.0,117530.0,0.42556845]
[1755191974661,0.144,117550.0,117530.0,0.42556845]
[1755191975148,0.143,117550.0,117530.0,0.42556845]
[1755191975553,0.145,117550.0,117530.0,0.42556845]
[1755191976066,0.003,117550.0,117530.0,0.42556845]
[1755191976262,0.003,117550.0,117530.0,0.5082917]
[1755191976488,0.003,117550.0,117540.0,0.66040617]
[1755191976669,0.14496,117550.0,117540.0,0.08248443]
[1755191977431,0.14396,117550.0,117540.0,0.08393438]
[1755191977630,0.14392,117550.0,117540.0,0.82561369]
[1755191977834,0.14492,117550.0,117540.0,1.16416374]
[1755191978400,0.14292,117550.0,117540.0,1.42836374]
[1755191978818,0.14392,117550.0,117540.0,1.33172649]
[1755191979037,0.14192,117550.0,117540.0,1.33172649]
[1755191979187,0.14192,117550.0,117540.0,0.68668443]
[1755191979395,0.14492,117550.0,117540.0,0.68668443]
[1755191979800,0.15011,117550.0,117540.0,0.34668443]
[1755191980012,0.15011,117550.0,117540.0,0.2642]
[1755191980187,0.14807,117550.0,117540.0,0.2642]
[1755191980411,0.14187,117550.0,117540.0,0.2642]
[1755191981616,0.13872,117550.0,117540.0,0.2642]
[1755191982485,0.13872,117550.0,117530.0,0.45110245]
[1755191982922,0.13872,117550.0,117540.0,0.00145011]
[1755191983377,0.14484,117550.0,117540.0,0.00145011]
[1755191983585,0.14384,117550.0,117540.0,0.00145011]
[1755191983734,0.14484,117550.0,117540.0,0.00145011]
[1755191985292,0.14184,117550.0,117540.0,0.00145011]
[1755191985680,0.14384,117550.0,117540.0,0.00145011]
[1755191986084,0.14284,117550.0,117540.0,0.00145011]
[1755191986262,0.14284,117550.0,117540.0,0.00245011]
[1755191986454,0.14484,117550.0,117540.0,0.00245011]
[1755191987353,0.003,117550.0,117540.0,0.6616133]
[1755191987555,0.003,117550.0,117540.0,1.16537087]
[1755191987689,0.14476,117550.0,117540.0,1.16537087]
[1755191988289,0.14476,117550.0,117540.0,1.42957087]
[1755191988898,0.14476,117550.0,117540.0,0.77040768]
[1755191989775,0.14472,117550.0,117540.0,1.42957087]
[1755191989945,0.003,117550.0,117540.0,1.42957087]
[1755191990150,0.14472,117550.0,117540.0,1.42957087]
[1755191993191,0.14472,117550.0,117540.0,0.77040768]
[1755191994416,0.14472,117550.0,117540.0,1.42957087]
[1755191995891,0.14991,117550.0,117540.0,0.77040768]
[1755191997714,0.14991,117550.0,117540.0,0.79593768]
[1755191998470,0.14991,117550.0,117540.0,0.42348443]
[1755192000632,0.14452,117550.0,117540.0,1.16537087]
[1755192000836,0.14767,117550.0,117540.0,1.16537087]
[1755192001067,0.14971,117550.0,117540.0,0.50620768]
[1755192001268,0.14971,117550.0,117540.0,1.16537087]
[1755192001716,0.14971,117550.0,117540.0,0.50620768]
[1755192002244,0.14971,117550.0,117540.0,0.42372325]
[1755192002723,0.14871,117550.0,117540.0,0.98611973]
[1755192002928,0.14667,117550.0,117540.0,0.98611973]
[1755192003068,0.14667,117550.0,117540.0,0.98511973]
[1755192003442,0.14467,117550.0,117540.0,0.98511973]
[1755192003737,0.14767,117550.0,117540.0,1.06760416]
[1755192004071,0.14867,117550.0,117540.0,1.06760416]
[1755192005919,0.00715,117550.0,117540.0,1.06760416]
[1755192006127,0.14859,117550.0,117540.0,1.06760416]
[1755192007484,0.004,117550.0,117540.0,1.06760416]
[1755192007671,0.004,117550.0,117540.0,1.65321044]
[1755192007844,0.004,117550.0,117540.0,1.67821044]
[1755192008079,0.004,117550.0,117540.0,1.74668946]
[1755192008488,0.003,117550.0,117540.0,2.77822046]
[1755192008687,0.003,117550.0,117540.0,2.97058198]
[1755192008884,0.14136,117580.0,117550.0,0.01744902]
[1755192009136,0.14136,117580.0,117570.0,0.65857724]
[1755192009344,0.14136,117580.0,117570.0,0.74130049]
[1755192010354,0.14136,117580.0,117570.0,0.74134982]
[1755192010957,0.14644,117580.0,117570.0,0.74234982]
[1755192011172,0.14944,117580.0,117570.0,0.74334982]
[1755192011416,0.14945,117580.0,117570.0,0.82483425]
[1755192011701,0.15045,117580.0,117570.0,0.82583425]
[1755192011929,0.14544,117580.0,117570.0,0.82483425]
[1755192012295,0.14644,117580.0,117570.0,0.82483425]
[1755192012507,0.14845,117580.0,117570.0,0.16625701]
[1755192012734,0.14845,117580.0,117570.0,0.82483425]
[1755192013102,0.14845,117580.0,117570.0,0.19177801]
[1755192014435,0.14845,117580.0,117570.0,0.85035525]
[1755192014903,0.14632,117580.0,117570.0,1.11455525]
[1755192016891,0.14324,117580.0,117570.0,1.11455525]
[1755192017691,0.002,117580.0,117570.0,1.11455525]
[1755192018109,0.002,117580.0,117570.0,0.45597801]
[1755192018279,0.002,117580.0,117570.0,1.11455525]
[1755192019537,0.002,117580.0,117570.0,1.63816427]
[1755192019968,0.002,117580.0,117570.0,1.99948769]
[1755192020169,0.14112,117600.0,117590.0,1.16865973]
[1755192020403,0.21186186,117610.0,117600.0,0.17006802]
[1755192020624,0.21079186,117610.0,117600.0,0.91136851]
[1755192021023,0.21387186,117610.0,117600.0,0.92011753]
[1755192021795,0.21887186,117610.0,117600.0,0.92111753]
[1755192022021,0.21887186,117610.0,117600.0,0.26254029]
[1755192022176,0.21887186,117610.0,117600.0,0.00974902]
[1755192022394,0.22087186,117610.0,117600.0,0.24104863]
[1755192022601,0.39092542,117610.0,117600.0,0.24104863]
[1755192023407,0.22087186,117610.0,117600.0,0.24104863]
[1755192024185,0.01209,117610.0,117600.0,0.24104863]
[1755192024412,0.15317,117610.0,117600.0,0.89962587]
[1755192025584,0.15317,117610.0,117600.0,0.24104863]
[1755192026463,0.007,117610.0,117600.0,0.98234912]
[1755192026622,0.148,117610.0,117600.0,0.98234912]
[1755192026832,0.15108,117610.0,117600.0,0.98234912]
[1755192027043,0.15309,117610.0,117600.0,0.98234912]
[1755192027442,0.15309,117610.0,117600.0,0.32377188]
[1755192027659,0.15309,117610.0,117600.0,0.98234912]
[1755192027864,0.15309,117610.0,117600.0,1.00786612]
[1755192029231,0.15108,117610.0,117600.0,1.00786612]
[1755192029506,0.15108,117610.0,117600.0,1.34786612]
[1755192029738,0.15093,117610.0,117600.0,1.61206612]
[1755192029959,0.00685,117610.0,117600.0,1.61206612]
[1755192030165,0.14781,117610.0,117600.0,0.95348888]
[1755192030366,0.14781,117610.0,117600.0,1.58654912]
[1755192030586,0.14777,117610.0,117600.0,1.61206612]
[1755192031051,0.204,117640.0,117630.0,0.17002465]
[1755192031256,0.34693,117640.0,117630.0,0.20402973]
[1755192031489,0.35001,117640.0,117630.0,0.20402973]
[1755192032248,0.35050315,117640.0,117630.0,0.20402973]
[1755192032463,0.36050315,117640.0,117630.0,0.20702973]
[1755192032663,0.35350315,117640.0,117630.0,0.20502973]
[1755192032857,0.52351335,117640.0,117630.0,0.17102465]
[1755192033066,0.52951335,117640.0,117630.0,0.17202465]
[1755192033740,0.52951335,117640.0,117630.0,0.002]
[1755192033860,1.21262059,117640.0,117630.0,0.002]
[1755192034066,1.29534384,117640.0,117630.0,0.002]
[1755192034676,0.6367666,117640.0,117630.0,0.002]
[1755192035821,0.52951335,117640.0,117630.0,0.17202465]
[1755192037232,0.35950315,117640.0,117630.0,0.17202465]
[1755192038024,0.35950315,117640.0,117630.0,0.83060189]
[1755192038025,0.35425315,117640.0,117630.0,0.83060189]
[1755192038307,0.15025315,117640.0,117630.0,1.25332514]
[1755192038499,0.00949315,117640.0,117630.0,1.33580957]
[1755192038971,1e-08,117640.0,117630.0,1.49401859]
[1755192039296,1e-08,117640.0,117630.0,1.54401859]
[1755192039546,0.00307,117680.0,117670.0,0.16996685]
[1755192039808,0.14383,117680.0,117670.0,0.22101287]
[1755192040046,0.14585,117680.0,117670.0,0.22101287]
[1755192040782,0.14585,117680.0,117670.0,0.31225305]
[1755192041730,0.14685,117680.0,117670.0,0.31225305]
[1755192042089,0.14785,117680.0,117670.0,0.31425305]
[1755192044759,0.31780241,117680.0,117670.0,0.31425305]
[1755192044975,0.33365017,117680.0,117670.0,0.31425305]
[1755192045716,0.33365017,117680.0,117670.0,0.2315298]
[1755192045893,0.16369776,117680.0,117670.0,0.2315298]
[1755192046372,0.33365017,117680.0,117670.0,0.06156295]
[1755192046574,0.40131203,117680.0,117670.0,0.00204933]
[1755192048029,0.02293776,117680.0,117670.0,0.17201618]
[1755192048476,0.16349776,117680.0,117670.0,0.17201618]
[1755192048670,0.16349776,117680.0,117670.0,0.25450061]
[1755192049107,0.16042776,117680.0,117670.0,0.25450061]
[1755192049315,0.15840776,117680.0,117670.0,0.33722386]
[1755192049966,0.01784776,117680.0,117670.0,1.3358011]
[1755192050177,0.14252,117680.0,117670.0,1.3358011]
[1755192050369,0.01784776,117680.0,117670.0,1.3358011]
[1755192050567,0.15836776,117680.0,117670.0,1.3358011]
[1755192050922,0.01784776,117680.0,117670.0,1.3358011]
[1755192051125,0.14248,117680.0,117670.0,1.3358011]
[1755192052170,0.002,117680.0,117670.0,1.51922812]
[1755192052377,0.01603194,117700.0,117690.0,0.50993797]
[1755192052586,0.15651194,117700.0,117690.0,1.31922623]
[1755192052788,0.01603194,117700.0,117690.0,1.33667525]
[1755192054365,0.01703194,117700.0,117690.0,1.33867525]
[1755192055164,0.01703194,117700.0,117690.0,0.66264899]
[1755192055799,0.02212194,117700.0,117690.0,0.66264899]
[1755192056213,0.01703194,117700.0,117690.0,0.66264899]
[1755192056414,0.01703194,117700.0,117690.0,1.32222623]
[1755192056820,0.01703194,117700.0,117690.0,0.66364899]
[1755192057858,0.00629,117700.0,117690.0,0.66364899]
[1755192059245,0.0012,117700.0,117690.0,0.66364899]
[1755192059670,0.0012,117700.0,117690.0,1.32222623]
[1755192060451,0.0012,117700.0,117690.0,1.4741951]
[1755192060636,0.00629,117700.0,117690.0,0.81561786]
[1755192061848,0.0012,117700.0,117690.0,1.4741951]
[1755192062250,0.0012,117700.0,117690.0,1.7383951]
[1755192062872,0.0012,117700.0,117690.0,1.75584412]
[1755192063088,1e-08,117700.0,117690.0,2.60758912]
[1755192063291,1e-08,117700.0,117690.0,2.28322912]
[1755192063914,1e-08,117700.0,117690.0,2.13126025]
[1755192064112,1e-08,117700.0,117690.0,2.15447324]
[1755192064319,1e-08,117700.0,117690.0,2.30602378]
[1755192065885,1e-08,117700.0,117690.0,2.28281079]
[1755192066681,1e-08,117700.0,117690.0,2.13126025]
[1755192067305,1e-08,117700.0,117690.0,2.28281997]
[1755192068129,1e-08,117700.0,117690.0,2.13126025]
[1755192069425,1e-08,117700.0,117690.0,1.69129525]
[1755192069807,1e-08,117700.0,117690.0,1.65635721]
[1755192070012,1e-08,117700.0,117690.0,1.54123721]
[1755192070922,1e-08,117700.0,117690.0,0.85765997]
[1755192071136,1e-08,117700.0,117690.0,1.51623721]
[1755192071338,1e-08,117700.0,117690.0,1.54123721]
[1755192073114,0.00497001,117700.0,117690.0,1.56672721]
[1755192073266,0.00497001,117700.0,117690.0,1.54172721]
[1755192073468,0.00497001,117700.0,117690.0,1.56672721]
[1755192073673,1e-08,117700.0,117690.0,1.56672721]
[1755192073879,1e-08,117700.0,117690.0,1.41516525]
[1755192074052,1e-08,117700.0,117690.0,1.67936525]
[1755192074491,1e-08,117700.0,117690.0,1.81940525]
[1755192075378,1e-08,117700.0,117690.0,2.20869325]
[1755192076770,1e-08,117700.0,117690.0,2.06428225]
[1755192077006,1e-08,117700.0,117690.0,1.29970501]
[1755192077234,1e-08,117700.0,117690.0,1.93328225]
[1755192077456,1e-08,117700.0,117690.0,1.81940525]
[1755192078896,1e-08,117700.0,117690.0,2.01711718]
[1755192080184,1e-08,117700.0,117690.0,2.01699718]
[1755192081199,0.00301001,117700.0,117690.0,1.99199718]
[1755192081388,0.00301001,117700.0,117690.0,2.01699718]